Workbook

Sheet паспорт
A1: ПАТ "УКРТРАНСГАЗ" | G1: ПАСПОРТ ФІЗИКО-ХІМІЧНИХ ПОКАЗНИКІВ ПРИРОДНОГО ГАЗУ № 171
A2: Філія "УМГ "КИЇВТРАНСГАЗ" | G2: переданого Сумським ЛВУМГ та прийнятого ПАТ "Сумигаз"
A3: Сумського ЛВУМГ | G3: Маршрут № 171
A4: Вимірювальна хіміко-аналітична лабораторія
A5: Свідоцтво № РУ-0053/17 чинне до 10 травня 2022 р. | K5: по газопроводу "УРЕНГОЙ-ПОМАРИ-УЖГОРОД" | V5: за період з | X5: 2017-05-01 | Z5: по | AA5: 2017-05-31
A7: Число місяця | B7: Компонентний склад, % мол. | N7: Фізико-хімічні показники газу обчислені на основі компонентного складу, 101,325 кПа | X7: Температура точки роси за вологою (Р = 3.92 МПа), °С | Y7: Температура точки роси за вуглеводнями, °С | Z7: Вміст сірководню, г/м3 | AA7: Вміст меркаптанової сірки, г/м3 | AB7: Вміст механічних домішок, г/м3
N8: Густина абсолютна, кг/м3,при 20 ºС, | O8: Температура вимірювання/згоряння при 20/25°С
B9: метан, С1 | C9: етан, С2 | D9: пропан, С3 | E9: ізо-бутан, і-С4 | F9: н-бутан, н-С4 | G9: нео-пентан, нео-С5 | H9: ізо-пентан, і-С5 | I9: н-пентан, н-С5 | J9: гексани та вищі, С6+ | K9: кисень, О2 | L9: азот, N2 | M9: діоксид вуглецю, CО2 | O9: Теплота згоряння нижча | R9: Теплота згоряння вища | U9: Число Воббе вище
O10: ккал/м3 | P10: МДж/м3 | Q10: кВт⋅год/м3 | R10: ккал/м3 | S10: МДж/м3 | T10: кВт⋅год/м3 | U10: ккал/м3 | V10: МДж/м3 | W10: кВт⋅год/м3
A11: 1 | O11: 8247.348927 | P11: 34.55 | Q11: 9.591666667 | R11: 9138.244134 | S11: 38.28 | T11: 10.62777778 | AC11: =SUM(B11:M11)+$K$42+$N$42 -> 0
A12: 2 | O12: 8247.348927 | P12: 34.55 | Q12: 9.591666667 | R12: 9138.244134 | S12: 38.28 | T12: 10.62777778 | AC12: 0
A13: 3 | B13: 95.3181 | C13: 2.673 | D13: 0.85 | E13: 0.128 | F13: 0.126 | G13: 0.0017 | H13: 0.0226 | I13: 0.0162 | J13: 0.013 | K13: 0.0044 | L13: 0.632 | M13: 0.215 | N13: 0.7053 | O13: =P13*238.8459 -> 8249.737386 | P13: 34.54 | Q13: =P13/3.6 -> 9.594444444 | R13: =S13*238.8459 -> 9143.021052 | S13: 38.28 | T13: =S13/3.6 -> 10.63333333 | U13: =V13*238.8459 -> 11947.07192 | V13: 50.02 | W13: =V13/3.6 -> 13.89444444 | X13: -21.3 | AC13: 100 | AD13: =IF(AC13=100,"ОК"," ") -> ОК
A14: 4 | O14: 8249.737386 | P14: 34.54 | Q14: 9.594444444 | R14: 9143.021052 | S14: 38.28 | T14: 10.63333333 | X14: -22.9 | AC14: 0 | AD14: =IF(AC14=100,"ОК"," ") -> 
A15: 5 | O15: 8249.737386 | P15: 34.54 | Q15: 9.594444444 | R15: 9143.021052 | S15: 38.28 | T15: 10.63333333 | X15: -23.2 | AC15: 0
A16: 6 | O16: 8249.737386 | P16: 34.54 | Q16: 9.594444444 | R16: 9143.021052 | S16: 38.28 | T16: 10.63333333 | AC16: 0
A17: 7 | O17: 8249.737386 | P17: 34.54 | Q17: 9.594444444 | R17: 9143.021052 | S17: 38.28 | T17: 10.63333333 | AC17: 0
A18: 8 | O18: 8249.737386 | P18: 34.54 | Q18: 9.594444444 | R18: 9143.021052 | S18: 38.28 | T18: 10.63333333 | AC18: 0
A19: 9 | O19: 8249.737386 | P19: 34.54 | Q19: 9.594444444 | R19: 9143.021052 | S19: 38.28 | T19: 10.63333333 | AC19: 0
A20: 10 | B20: 95.2331 | C20: 2.742 | D20: 0.873 | E20: 0.132 | F20: 0.128 | G20: 0.0016 | H20: 0.0232 | I20: 0.0169 | J20: 0.0129 | K20: 0.0043 | L20: 0.608 | M20: 0.225 | N20: 0.7062 | O20: 8259.291222 | P20: 34.58 | Q20: 9.605555556 | R20: 9152.574888 | S20: 38.32 | T20: 10.64444444 | U20: =V20*238.8459 -> 11954.23729 | V20: 50.05 | W20: =V20/3.6 -> 13.90277778 | X20: -22.4 | Y20: -19 | AC20: 100 | AD20: ОК
A21: 11 | O21: 8259.291222 | P21: 34.58 | Q21: 9.605555556 | R21: 9152.574888 | S21: 38.32 | T21: 10.64444444 | X21: -22.6 | Y21: -19.2 | AC21: 0
A22: 12 | O22: 8259.291222 | P22: 34.58 | Q22: 9.605555556 | R22: 9152.574888 | S22: 38.32 | T22: 10.64444444 | X22: -21.9 | Y22: -19.1 | AC22: 0
A23: 13 | O23: 8259.291222 | P23: 34.58 | Q23: 9.605555556 | R23: 9152.574888 | S23: 38.32 | T23: 10.64444444 | X23: -20.8 | Y23: -17.9 | AC23: 0
A24: 14 | O24: 8259.291222 | P24: 34.58 | Q24: 9.605555556 | R24: 9152.574888 | S24: 38.32 | T24: 10.64444444 | AC24: 0
A25: 15 | B25: 95.1738 | C25: 2.78 | D25: 0.882 | E25: 0.134 | F25: 0.131 | G25: 0.0017 | H25: 0.0244 | I25: 0.0175 | J25: 0.0134 | K25: 0.0042 | L25: 0.604 | M25: 0.234 | N25: 0.7067 | O25: 8264.06814 | P25: 34.6 | Q25: 9.611111111 | R25: 9157.351806 | S25: 38.34 | T25: 10.65 | U25: =V25*238.8459 -> 11954.23729 | V25: 50.05 | W25: =V25/3.6 -> 13.90277778 | X25: -21.6 | Y25: -18.6 | Z25: 0.0001 | AA25: <0,01 | AB25: 0 | AC25: 100 | AD25: ОК
A26: 16 | O26: 8264.06814 | P26: 34.6 | Q26: 9.611111111 | R26: 9157.351806 | S26: 38.34 | T26: 10.65 | X26: -22.2 | Y26: -19 | AC26: 0
A27: 17 | O27: 8264.06814 | P27: 34.6 | Q27: 9.611111111 | R27: 9157.351806 | S27: 38.34 | T27: 10.65 | X27: -22.9 | Y27: -19.7 | AC27: 0
A28: 18 | O28: 8264.06814 | P28: 34.6 | Q28: 9.611111111 | R28: 9157.351806 | S28: 38.34 | T28: 10.65 | X28: -22.8 | Y28: -20.4 | AC28: 0
A29: 19 | O29: 8264.06814 | P29: 34.6 | Q29: 9.611111111 | R29: 9157.351806 | S29: 38.34 | T29: 10.65 | X29: -23 | Y29: -19.6 | AC29: 0
A30: 20 | O30: 8264.06814 | P30: 34.6 | Q30: 9.611111111 | R30: 9157.351806 | S30: 38.34 | T30: 10.65 | AC30: 0 | AD30: =IF(AC30=100,"ОК"," ") -> 
A31: 21 | O31: 8264.06814 | P31: 34.6 | Q31: 9.611111111 | R31: 9157.351806 | S31: 38.34 | T31: 10.65 | AC31: 0
A32: 22 | B32: 95.08 | C32: 2.849 | D32: 0.909 | E32: 0.135 | F32: 0.131 | G32: 0.0016 | H32: 0.0238 | I32: 0.0164 | J32: 0.012 | K32: 0.0042 | L32: 0.602 | M32: 0.236 | N32: 0.7074 | O32: 8271.233517 | P32: 34.63 | Q32: 9.619444444 | R32: 9164.517183 | S32: 38.37 | T32: 10.65833333 | U32: =V32*238.8459 -> 11959.01421 | V32: 50.07 | W32: =V32/3.6 -> 13.90833333 | X32: -23.9 | Y32: -21 | AC32: 100 | AD32: ОК
A33: 23 | O33: 8271.233517 | P33: 34.63 | Q33: 9.619444444 | R33: 9164.517183 | S33: 38.37 | T33: 10.65833333 | X33: -22.9 | Y33: -20.3 | AC33: 0 | AD33: =IF(AC33=100,"ОК"," ") -> 
A34: 24 | O34: 8271.233517 | P34: 34.63 | Q34: 9.619444444 | R34: 9164.517183 | S34: 38.37 | T34: 10.65833333 | X34: -23.1 | Y34: -20.1 | AC34: 0
A35: 25 | O35: 8271.233517 | P35: 34.63 | Q35: 9.619444444 | R35: 9164.517183 | S35: 38.37 | T35: 10.65833333 | X35: -23.5 | Y35: -20.1 | AC35: 0
A36: 26 | O36: 8271.233517 | P36: 34.63 | Q36: 9.619444444 | R36: 9164.517183 | S36: 38.37 | T36: 10.65833333 | X36: -22.7 | Y36: -19.1 | AC36: 0
A37: 27 | O37: 8271.233517 | P37: 34.63 | Q37: 9.619444444 | R37: 9164.517183 | S37: 38.37 | T37: 10.65833333 | AC37: 0
A38: 28 | O38: 8271.233517 | P38: 34.63 | Q38: 9.619444444 | R38: 9164.517183 | S38: 38.37 | T38: 10.65833333 | AC38: 0
A39: 29 | B39: 95.4317 | C39: 2.561 | D39: 0.858 | E39: 0.13 | F39: 0.131 | G39: 0.0017 | H39: 0.0233 | I39: 0.0166 | J39: 0.0121 | K39: 0.0046 | L39: 0.632 | M39: 0.198 | N39: 0.7047 | O39: 8247.348927 | P39: 34.53 | Q39: 9.591666667 | R39: 9138.244134 | S39: 38.26 | T39: 10.62777778 | U39: =V39*238.8459 -> 11947.07192 | V39: 50.02 | W39: =V39/3.6 -> 13.89444444 | X39: -21.9 | Y39: -19.1 | AC39: 100
A40: 30 | O40: =P40*238.8459 -> 8247.348927 | P40: 34.53 | Q40: =P40/3.6 -> 9.591666667 | R40: =S40*238.8459 -> 9138.244134 | S40: 38.26 | T40: =S40/3.6 -> 10.62777778 | X40: -21.5 | Y40: -18.5 | AC40: 0
A41: 31 | O41: 8247.348927 | P41: 34.53 | Q41: 9.591666667 | R41: 9138.244134 | S41: 38.26 | T41: 10.62777778 | X41: -22.5 | Y41: -19.2 | AC41: 0
A42: Рівень одоризації відповідає чинним нормативним документам | O42: 8259.678487 | P42: 34.58257541 | Q42: 9.606005945 | R42: 9152.732078 | S42: 38.32161213 | T42: 10.64462726
H43: Середньозважене значення теплоти згоряння:
B46: Головний інженер Сумського ЛВУМГ Соловйов О.Б. 01.06.2017
C47: Керівник підрозділу підприємства, якому підпорядкована лабораторія | O47: прізвище | R47: підпис | V47: дата
B48: Завідувач ВХАЛ Журавльова В.В. 01.06.2017
C49: Лабораторія, де здійснювалось вимірювання газу | O49: прізвище | R49: підпис | V49: дата
B50: Начальник служби ГВ та М Соловйов А.І. 01.06.2017
C51: Метрологічна служба, яка вимірює обсяги газу | O51: прізвище | R51: підпис | V51: дата

Sheet розрахунок
A2: Додаток до Паспорту фізико-хімічних показників природного газу по маршруту № 171
A4: Число місяця | B4: Теплота згоряння вища, МДж/м3 | C4: Сумська область | E4: Загальний обсяг газу, м3
C5: Обсяг газу переданого за добу, м3
C6: ГРС Северинівка | D6: ГРС Миколаївка (Жовтневе)
A7: 1 | B7: =паспорт!S11 -> 38.28 | C7: 1158.6372 | D7: 4766.709 | E7: =SUM(C7:D7) -> 5925.3462
A8: 2 | B8: =паспорт!S12 -> 38.28 | C8: 1112.0604 | D8: 4740.9087 | E8: 5852.9691
A9: 3 | B9: =паспорт!S13 -> 38.28 | C9: 1089.2334 | D9: 3688.0571 | E9: 4777.2905
A10: 4 | B10: =паспорт!S14 -> 38.28 | C10: 1190.3877 | D10: 4109.2554 | E10: 5299.6431
A11: 5 | B11: =паспорт!S15 -> 38.28 | C11: 1338.7528 | D11: 4363.1938 | E11: 5701.9466
A12: 6 | B12: =паспорт!S16 -> 38.28 | C12: 1229.0957 | D12: 4351.3213 | E12: 5580.417
A13: 7 | B13: =паспорт!S17 -> 38.28 | C13: 1157.9493 | D13: 4119.8721 | E13: 5277.8214
A14: 8 | B14: =паспорт!S18 -> 38.28 | C14: 1289.8804 | D14: 4676.1689 | E14: 5966.0493
A15: 9 | B15: =паспорт!S19 -> 38.28 | C15: 1703.8461 | D15: 6391.125 | E15: 8094.9711
A16: 10 | B16: =паспорт!S20 -> 38.32 | C16: 2451.6133 | D16: 9595.0469 | E16: 12046.6602
A17: 11 | B17: =паспорт!S21 -> 38.32 | C17: 2425.875 | D17: 10109.6211 | E17: 12535.4961
A18: 12 | B18: =паспорт!S22 -> 38.32 | C18: 3039.3804 | D18: 13207.9824 | E18: 16247.3628
A19: 13 | B19: =паспорт!S23 -> 38.32 | C19: 4346.7104 | D19: 16763.4219 | E19: 21110.1323
A20: 14 | B20: =паспорт!S24 -> 38.32 | C20: 3108.2727 | D20: 12768.5898 | E20: 15876.8625
A21: 15 | B21: =паспорт!S25 -> 38.34 | C21: 1789.1946 | D21: 6636.2495 | E21: 8425.4441
A22: 16 | B22: =паспорт!S26 -> 38.34 | C22: 1554.517 | D22: 5848.0107 | E22: 7402.5277
A23: 17 | B23: =паспорт!S27 -> 38.34 | C23: 2438.0024 | D23: 8887.0957 | E23: 11325.0981
A24: 18 | B24: =паспорт!S28 -> 38.34 | C24: 2285.512 | D24: 7928.1411 | E24: 10213.6531
A25: 19 | B25: =паспорт!S29 -> 38.34 | C25: 2792.845 | D25: 10027.2314 | E25: 12820.0764
A26: 20 | B26: =паспорт!S30 -> 38.34 | C26: 1935.3115 | D26: 7063.9951 | E26: 8999.3066
A27: 21 | B27: =паспорт!S31 -> 38.34 | C27: 1627.6584 | D27: 6305.4014 | E27: 7933.0598
A28: 22 | B28: =паспорт!S32 -> 38.37 | C28: 1359.9321 | D28: 4458.7402 | E28: 5818.6723
A29: 23 | B29: =паспорт!S33 -> 38.37 | C29: 1031.0321 | D29: 4547.564 | E29: 5578.5961
A30: 24 | B30: =паспорт!S34 -> 38.37 | C30: 1085.6144 | D30: 4567.0425 | E30: 5652.6569
A31: 25 | B31: =паспорт!S35 -> 38.37 | C31: 949.6692 | D31: 4183.8008 | E31: 5133.47
A32: 26 | B32: =паспорт!S36 -> 38.37 | C32: 967.6808 | D32: 3841.4783 | E32: 4809.1591
A33: 27 | B33: =паспорт!S37 -> 38.37 | C33: 1111.8436 | D33: 4094.0432 | E33: 5205.8868
A34: 28 | B34: =паспорт!S38 -> 38.37 | C34: 1033.3998 | D34: 4271.7539 | E34: 5305.1537
A35: 29 | B35: =паспорт!S39 -> 38.26 | C35: 830.5259 | D35: 3397.498 | E35: 4228.0239
A36: 30 | B36: =паспорт!S40 -> 38.26 | C36: 847.7809 | D36: 3650.6995 | E36: 4498.4804
A37: 31 | B37: =паспорт!S41 -> 38.26 | C37: 784.9739 | D37: 2495.731 | E37: 3280.7049
A38: Загальний обсяг газу, м3 | C38: =SUM(C7:C37) -> 51067.1884 | D38: =SUM(D7:D37) -> 195855.7497 | E38: =SUM(E7:E37) -> 246922.9381
A39: Енергія, МДж | C39: =SUMPRODUCT(B7:B37,C7:C37) -> 1956961.488 | D39: =SUMPRODUCT(B7:B37,D7:D37) -> 7505523.572 | E39: =SUMPRODUCT(B7:B37,E7:E37) -> 9462485.06
A40: Теплота згоряння (середньозважене значення за місяць), МДж/м³ | C40: =C39/C38 -> 38.32130865 | D40: =D39/D38 -> 38.32169126 | E40: =E39/E38 -> 38.32161213
A41: Теплота згоряння (середньозважене значення за місяць), ккал/м³ | C41: =C40*238.8459 -> 9152.887453 | D41: =D40*238.8459 -> 9152.978839 | E41: =E40*238.8459 -> 9152.959939
A42: Теплота згоряння (середньозважене значення за місяць), кВт*год./м³ | C42: =C40/3.6 -> 10.64480796 | D42: =D40/3.6 -> 10.64491424 | E42: =E40/3.6 -> 10.64489226

Sheet додаток
A1: Додаток до Паспорту фізико-хімічних показників природного газу №171
A3: Область | B3: ГРС, прямий споживач | C3: Cередньозважене значення вищої теплоти згоряння
C4: МДж/м³ | D4: ккал/м³ | E4: кВт*год./м³
A5: Сумська область | B5: ГРС Северинівка | C5: 38.32130865 | D5: 9152.887453 | E5: 10.64480796
B6: ГРС Миколаївка (Жовтневе) | C6: 38.32169126 | D6: 9152.978839 | E6: 10.64491424
A7: Середньозважене значення вищої теплоти згоряння по маршруту № 171 | C7: 38.32161213 | D7: 9152.959939 | E7: 10.64489226
A11: Головний інженер Сумського ЛВУМГ | C11: Соловйов О.Б. | E11: 2017-06-01
A12: Підрозділу підприємства, якому підпорядкована лабораторія | C12: прізвище | D12: підпис | E12: дата
A13: Завідувач ВХАЛ | C13: Журавльова В.В. | E13: 2017-06-01
A14: Лабораторія, де здійснювалось вимірювання газу | C14: прізвище | D14: підпис | E14: дата
A15: Начальник служби МтаГВ | C15: Соловйов А.І. | E15: 2017-06-01
A16: Підрозділу, відповідального за облік газу за маршрутом | C16: прізвище | D16: підпис | E16: дата

Sheet variablesList (hidden)
A1: 3 | B1: x:\gaysin | C1: 10, 11, 24, 25, 127, 128, 132, 180, 207, 215 | D1: x:\
B2: x:\Illinci
B3: x:\Talne

Sheet Лист1
A1: Данные по объекту Севериновка- счетчик (осн.) за 5/17. | H1: Данные по объекту Октябрь - Cчетчик (осн.) за 5/17.
A2: День | B2: V, м3 | C2: Vру, м3 | D2: Pабс, кгс/см2 | E2: T, °C | F2: ABC | H2: День | I2: V, м3 | J2: Vру, м3 | K2: Pабс, кгс/см2 | L2: T, °C | M2: ABC
A3: 1 | B3: 1158.6372 | C3: 377.0001 | D3: 3.159 | E3: 18.275 | F3: A | H3: 1 | I3: 4766.709 | J3: 65 | K3: 65.982 | L3: 17.756 | M3: A
A4: 2 | B4: 1112.0604 | C4: 356.0001 | D4: 3.186 | E4: 16.555 | F4: A | H4: 2 | I4: 4740.9087 | J4: 63 | K4: 66.953 | L4: 16.514
A5: 3 | B5: 1089.2334 | C5: 346.0001 | D5: 3.203 | E5: 15.6 | F5: AB | H5: 3 | I5: 3688.0571 | J5: 48 | K5: 67.696 | L5: 15.38 | M5: AB
A6: 4 | B6: 1190.3877 | C6: 375.0001 | D6: 3.209 | E6: 14.908 | F6: A | H6: 4 | I6: 4109.2554 | J6: 54 | K6: 66.973 | L6: 15.381
A7: 5 | B7: 1338.7528 | C7: 415.0001 | D7: 3.223 | E7: 12.713 | F7: A | H7: 5 | I7: 4363.1938 | J7: 58 | K7: 66.041 | L7: 14.071
A8: 6 | B8: 1229.0957 | C8: 394.0001 | D8: 3.189 | E8: 17.672 | F8: A | H8: 6 | I8: 4351.3213 | J8: 59 | K8: 65.495 | L8: 15.828
A9: 7 | B9: 1157.9493 | C9: 374.0001 | D9: 3.178 | E9: 18.074 | F9: A | H9: 7 | I9: 4119.8721 | J9: 56 | K9: 65.812 | L9: 17.372
A10: 8 | B10: 1289.8804 | C10: 409.0001 | D10: 3.199 | E10: 14.684 | F10: A | H10: 8 | I10: 4676.1689 | J10: 63 | K10: 65.567 | L10: 15.156
A11: 9 | B11: 1703.8461 | C11: 516.0001 | D11: 3.26 | E11: 8.2 | F11: A | H11: 9 | I11: 6391.125 | J11: 83 | K11: 66.454 | L11: 11.072
A12: 10 | B12: 2451.6133 | C12: 733.0001 | D12: 3.275 | E12: 6.933 | F12: AB | H12: 10 | I12: 9595.0469 | J12: 122 | K12: 66.672 | L12: 8.861 | M12: B
A13: 11 | B13: 2425.875 | C13: 736.0001 | D13: 3,265* | E13: 9,453* | F13: A C | H13: 11 | I13: 10109.6211 | J13: 132 | K13: 65.526 | L13: 9.987
A14: 12 | B14: 3039.3804 | C14: 901.0001 | D14: 3.306 | E14: 6.229 | H14: 12 | I14: 13207.9824 | J14: 184 | K14: 64.144 | L14: 16.749 | M14: A
A15: 13 | B15: 4346.7104 | C15: 1285.0002 | D15: 3.311 | E15: 5.989 | H15: 13 | I15: 16763.4219 | J15: 225 | K15: 65.597 | L15: 14.072 | M15: A
A16: 14 | B16: 3108.2727 | C16: 944.0001 | D16: 3.269 | E16: 9.277 | H16: 14 | I16: 12768.5898 | J16: 165 | K16: 66.231 | L16: 10.592
A17: 15 | B17: 1789.1946 | C17: 555.0001 | D17: 3.237 | E17: 13.407 | F17: AB | H17: 15 | I17: 6636.2495 | J17: 88 | K17: 65.814 | L17: 13.344 | M17: B
A18: 16 | B18: 1554.517 | C18: 484.0001 | D18: 3.23 | E18: 14.43 | F18: A | H18: 16 | I18: 5848.0107 | J18: 78 | K18: 65.719 | L18: 14.33
A19: 17 | B19: 2438.0024 | C19: 735.0001 | D19: 3.284 | E19: 8.749 | H19: 17 | I19: 8887.0957 | J19: 115 | K19: 66.31 | L19: 10.569
A20: 18 | B20: 2285.512 | C20: 688.0001 | D20: 3.286 | E20: 9.066 | F20: A | H20: 18 | I20: 7928.1411 | J20: 101 | K20: 66.887 | L20: 10.375
A21: 19 | B21: 2792.845 | C21: 840.0001 | D21: 3.288 | E21: 8.122 | F21: A | H21: 19 | I21: 10027.2314 | J21: 130 | K21: 65.943 | L21: 10.093
A22: 20 | B22: 1935.3115 | C22: 604.0001 | D22: 3.23 | E22: 14.056 | F22: A | H22: 20 | I22: 7063.9951 | J22: 96 | K22: 64.087 | L22: 13.015
A23: 21 | B23: 1627.6584 | C23: 514.0001 | D23: 3.208 | E23: 14.991 | F23: A | H23: 21 | I23: 6305.4014 | J23: 88 | K23: 63.273 | L23: 14.384
A24: 22 | B24: 1359.9321 | C24: 425.0001 | D24: 3.22 | E24: 13.638 | F24: AB | H24: 22 | I24: 4458.7402 | J24: 61 | K24: 64.297 | L24: 13.801 | M24: B
A25: 23 | B25: 1031.0321 | C25: 333.0001 | D25: 3.182 | E25: 18.944 | F25: A | H25: 23 | I25: 4547.564 | J25: 62 | K25: 65.473 | L25: 16.83
A26: 24 | B26: 1085.6144 | C26: 347.0001 | D26: 3.195 | E26: 16.851 | F26: A | H26: 24 | I26: 4567.0425 | J26: 59 | K26: 69.089 | L26: 17.008
A27: 25 | B27: 949.6692 | C27: 310.0001 | D27: 3.166 | E27: 19.682 | F27: A | H27: 25 | I27: 4183.8008 | J27: 53 | K27: 70.432 | L27: 18.724
A28: 26 | B28: 967.6808 | C28: 311.0001 | D28: 3.186 | E28: 17.592 | F28: A | H28: 26 | I28: 3841.4783 | J28: 49 | K28: 69.843 | L28: 18.288
A29: 27 | B29: 1111.8436 | C29: 356.0001 | D29: 3.198 | E29: 16.423 | F29: A | H29: 27 | I29: 4094.0432 | J29: 53 | K29: 68.436 | L29: 16.942
A30: 28 | B30: 1033.3998 | C30: 332.0001 | D30: 3.192 | E30: 16.826 | F30: A | H30: 28 | I30: 4271.7539 | J30: 56 | K30: 67.988 | L30: 17.345
A31: 29 | B31: 830.5259 | C31: 275.0001 | D31: 3.142 | E31: 21.78 | F31: AB | H31: 29 | I31: 3397.498 | J31: 46 | K31: 67.123 | L31: 20.632 | M31: B
A32: 30 | B32: 847.7809 | C32: 276.0001 | D32: 3.159 | E32: 18.733 | F32: A | H32: 30 | I32: 3650.6995 | J32: 48 | K32: 68.419 | L32: 19.189 | M32: A
A33: 31 | B33: 784.9739 | C33: 263.0001 | D33: 3.117 | E33: 23.667 | F33: A | H33: 31 | I33: =3405.731-910 -> 2495.731 | J33: 46 | K33: 67.691 | L33: 22.052
A34: Итого | B34: 51067,1885* | C34: 15809.0027 | D34: 3,218* | E34: 14,242* | F34: ABC | H34: Итого | I34: 196765.7498 | J34: 2606.0004 | K34: 66.515 | L34: 15.023 | M34: AB
